fUST/lending_fUST_20240810
["ID","MTS","AMOUNT","RATE_DAILY","PERIOD"]
[334567878,1723236867177,-152.77,0.000281,31]
[334567879,1723236867203,-152.77,0.000281,31]
[334567880,1723236867228,-152.77,0.000281,31]
[334567881,1723236867253,-152.77,0.000281,31]
[334567882,1723236867278,-152.77,0.000281,31]
[334567883,1723236867305,-152.77,0.000281,31]
[334567884,1723236867330,-152.77,0.000281,31]
[334567885,1723236867355,-152.77,0.000281,31]
[334567886,1723236867380,-152.77,0.000281,31]
[334567887,1723236867405,-152.77,0.000281,31]
[334567888,1723236867431,-152.77,0.000281,31]
[334567889,1723236867456,-152.77,0.000281,31]
[334567890,1723236867482,-152.77,0.000281,31]
[334567891,1723236867508,-152.77,0.000281,31]
[334567892,1723236867534,-152.77,0.000281,31]
[334567893,1723236867565,-169.890946,0.00028493,120]
[334567894,1723236867590,-632.82215441,0.00028767,12]
[334567895,1723236867616,-152.77,0.000289,31]
[334567896,1723236867641,-152.77,0.000289,31]
[334567897,1723236867667,-152.77,0.000289,31]
[334567898,1723236867694,-152.77,0.000289,31]
[334567899,1723236867719,-152.77,0.000289,31]
[334567900,1723236867743,-152.77,0.000289,31]
[334567901,1723236867770,-152.77,0.000289,31]
[334567902,1723236867797,-152.77,0.000289,31]
[334567903,1723236867823,-152.77,0.000289,31]
[334567904,1723236867847,-152.77,0.000289,31]
[334567905,1723236867873,-152.77,0.000289,31]
[334567906,1723236867898,-152.77,0.000289,31]
[334567907,1723236867924,-152.77,0.000289,31]
[334567908,1723236867951,-152.77,0.000289,31]
[334567909,1723236867978,-152.77,0.000289,31]
[334567910,1723236868004,-152.77,0.000289,31]
[334567911,1723236868030,-152.77,0.000289,31]
[334567912,1723236868057,-343.36744573,0.00029,120]
[334567913,1723236868081,-537910.1055,0.00029388,30]
[334567914,1723236868107,-152.77,0.000297,31]
[334567915,1723236868133,-152.77,0.000297,31]
[334567916,1723236868158,-152.77,0.000297,31]
[334567917,1723236868183,-152.77,0.000297,31]
[334567918,1723236868207,-152.77,0.000297,31]
[334567919,1723236868232,-152.77,0.000297,31]
[334567920,1723236868258,-152.77,0.000297,31]
[334567921,1723236868283,-152.77,0.000297,31]
[334567922,1723236868310,-152.77,0.000297,31]
[334567923,1723236868336,-152.77,0.000297,31]
[334567924,1723236868363,-152.77,0.000297,31]
[334567925,1723236868390,-152.77,0.000297,31]
[334567926,1723236868417,-152.77,0.000297,31]
[334567927,1723236868445,-152.77,0.000297,31]
[334567928,1723236868472,-152.77,0.000297,31]
[334567929,1723236868500,-152.77,0.000297,31]
[334567930,1723236868526,-152.77,0.000297,31]
[334567931,1723236868552,-200.0,0.0003,120]
[334567932,1723236868578,-36779.459782,0.0003,15]
[334567933,1723236868603,-151.0,0.0003,120]
[334567934,1723236868628,-151.0,0.0003,120]
[334567935,1723236868657,-152.77,0.000305,31]
[334567936,1723236868687,-152.77,0.000305,31]
[334567937,1723236868714,-152.77,0.000305,31]
[334567938,1723236868743,-152.77,0.000305,31]
[334567939,1723236868772,-152.77,0.000305,31]
[334567940,1723236868802,-152.77,0.000305,31]
[334567941,1723236868828,-152.77,0.000305,31]
[334567942,1723236868855,-152.77,0.000305,31]
[334567943,1723236868882,-152.77,0.000305,31]
[334567944,1723236868909,-152.77,0.000305,31]
[334567945,1723236868937,-152.77,0.000305,31]
[334567946,1723236868965,-152.77,0.000305,31]
[334567947,1723236868992,-152.77,0.000305,31]
[334567948,1723236869019,-152.77,0.000305,31]
[334567949,1723236869048,-152.77,0.000305,31]
[334567950,1723236869083,-152.77,0.000305,31]
[334567951,1723236869112,-152.77,0.000305,31]
[334567952,1723236869138,-5999.8868,0.000308,30]
[334567953,1723236869163,-7625.0,0.00032,10]
[334567954,1723236869187,-596.93711845,0.0003241,10]
[334567955,1723236869212,-151.0,0.00032411,120]
[334567956,1723236869236,-7706.28,0.000325,14]
[334567957,1723236869260,-717.3,0.000327,14]
[334567958,1723236869285,-5206.8897,0.000328,48]
[334567959,1723236869312,-519.08752451,0.00032852,20]
[334567960,1723236869342,-43968.3802902,0.000329,120]
[334567961,1723236873604,-356788.05111014,0.000329,120]
[334567962,1723236873631,-443211.94888986,0.00033017,60]
[334567963,1723236881396,-3001.97867173,0.00021917,11]
[334567964,1723236881651,-796998.02132827,0.00033017,60]
[334567965,1723236884348,-800000.0,0.00033017,60]
[334567966,1723236893118,-800000.0,0.00033017,60]
[334567967,1723236896895,-642922.51364913,0.00033017,60]
[334567968,1723236896921,-311.59,0.000332,30]
[334567969,1723236896945,-7706.28,0.000332,14]
[334567970,1723236896969,-151.0,0.00033342,120]
[334567971,1723236896993,-811.28446714,0.00034,120]
[334567972,1723236897018,-637.6,0.00034,14]
[334567973,1723236897042,-327.51960838,0.000342,10]
[334567974,1723236897066,-151.56738921,0.00034808,10]
[334567975,1723236897090,-151.0,0.00034822,120]
[334567976,1723236897114,-17477.33403957,0.00035,15]
[334567977,1723236897138,-1387.071325,0.00035616,120]
[334567978,1723236897164,-6146.13729342,0.00036,30]
[334567979,1723236897188,-5726.54082158,0.00036,30]
[334567980,1723236897212,-7706.28,0.000361,14]
[334567981,1723236897237,-151.0,0.00036685,120]
[334567982,1723236897261,-279.45607475,0.000368,30]
[334567983,1723236897286,-862.09616015,0.000368,30]
[334567984,1723236897310,-151.56738921,0.00036808,19]
[334567985,1723236897344,-100000.0,0.000372,30]
[334567986,1723236897369,-151.0,0.00037233,120]
[334567987,1723236897393,-6791.16178246,0.00037484,120]
[334567988,1723236905714,-501.1,0.000355,120]
[334567989,1723236905741,-176017.50717168,0.00037484,120]
[334567990,1723236905769,-1211.0,0.00037979,54]
[334567991,1723236905795,-3000.0,0.00038,42]
[334567992,1723236905821,-9319.44,0.00038,120]
[334567993,1723236905850,-3000.0,0.00038636,42]
[334567994,1723236905876,-151.56738921,0.00038808,27]
[334567995,1723236905900,-2071.999999,0.00039,120]
[334567996,1723236905926,-490.0,0.00039064,14]
[334567997,1723236905954,-3000.0,0.00039273,42]
[334567998,1723236905979,-151.0,0.00039644,120]
[334567999,1723236906004,-361332.35642561,0.0003987,120]
[334568000,1723236906030,-3000.0,0.00039909,42]
[334568001,1723236906061,-5000.0,0.0004,40]
[334568002,1723236906089,-59414.53555172,0.0004,10]
[334568003,1723236906115,-317.07636425,0.0004,120]
[334568004,1723236906140,-1734.0,0.0004,30]
[334568005,1723236906165,-1021.26369953,0.0004,120]
[334568006,1723236906190,-5998.28402908,0.0004,120]
[334568007,1723236906215,-213.0,0.0004,120]
[334568008,1723236906239,-1671.93754894,0.0004,120]
[334568009,1723236906263,-10000.0,0.0004,40]
[334568010,1723236906287,-71716.99038325,0.0004,60]
[334568011,1723236906313,-2170.64785243,0.0004,60]
[334568012,1723236906344,-4377.27429217,0.0004,120]
[334568013,1723236906368,-1119.0,0.0004,120]
[334568014,1723236906393,-1031.86,0.0004,60]
[334568015,1723236906419,-151.0,0.00040027,120]
[334568016,1723236906444,-487.24801642,0.000402,120]
[334568017,1723236906473,-3000.0,0.00040545,42]
[334568018,1723236906511,-21804.11198987,0.000408,30]
[334568019,1723236906544,-151.56738921,0.00040808,36]
[334568020,1723236906583,-5000.0,0.00041,41]
[334568021,1723236906615,-2000.0,0.00041,120]
[334568022,1723236906651,-2536.3134734,0.00041,120]
[334568023,1723236906684,-5006.40847131,0.00041,14]
[334568024,1723236906718,-152.0,0.00041041,31]
[334568025,1723236906752,-152.0,0.00041041,31]
[334568026,1723236912214,4351.71715984,0.00024,30]
[334568095,1723237832456,-200.0,0.00018904,2]
[334568096,1723237832466,-1078.39089779,0.00019177,2]
[334568097,1723237832476,-21289.3643552,0.00019781,2]
[334568098,1723237832485,-235.4122595,0.00020677,2]
[334568099,1723237832494,-155.0,0.0002079,4]
[334568100,1723237832504,-153.0,0.000208,2]
[334568101,1723237832513,-153.0,0.000208,2]
[334568102,1723237832523,-207.2250634,0.000208,2]
[334568103,1723237832532,-153.0,0.000208,2]
[334568104,1723237832541,-267.8162636,0.000208,2]
[334568105,1723237832551,-153.0,0.000208,2]
[334568106,1723237832560,-442.0831207,0.000208,2]
[334568107,1723237832570,-1970.50666813,0.000208,2]
[334568108,1723237832579,-267.8162636,0.000208,2]
[334568109,1723237832588,-267.8162636,0.000208,2]
[334568110,1723237832599,-267.8162636,0.000208,2]
[334568111,1723237832608,-153.5978301,0.000208,2]
[334568112,1723237832617,-306.0,0.000208,2]
[334568113,1723237832627,-150.01,0.00020803,2]
[334568114,1723237832637,-2993.10206773,0.00020803,2]
[334568115,1723237832646,-237.976,0.000209,2]
[334568116,1723237832656,-150.0,0.000209,2]
[334568117,1723237832665,-250.0,0.000209,2]
[334568118,1723237832675,-151.682,0.000209,2]
[334568119,1723237832684,-517.052,0.000209,2]
[334568120,1723237832693,-1412.0,0.000209,2]
[334568121,1723237832702,-267.8162636,0.000209,2]
[334568122,1723237832713,-267.8162636,0.000209,2]
[334568123,1723237832722,-267.8162636,0.000209,2]
[334568124,1723237832731,-153.0,0.000209,2]
[334568125,1723237832740,-267.8162636,0.000209,2]
[334568126,1723237832749,-153.0,0.000209,2]
[334568127,1723237832758,-301.3180478,0.000209,2]
[334568128,1723237832768,-153.0,0.000209,2]
[334568129,1723237832778,-207.2250634,0.000209,2]
[334568130,1723237832789,-294.5666805,0.000209,2]
[334568131,1723237832799,-294.5666805,0.000209,2]
[334568132,1723237832809,-153.0,0.000209,2]
[334568133,1723237832818,-267.8162636,0.000209,2]
[334568134,1723237832827,-153.0,0.000209,2]
[334568135,1723237832836,-207.2250634,0.000209,2]
[334568136,1723237832850,-153.0,0.000209,2]
[334568137,1723237832861,-267.8162636,0.000209,2]
[334568138,1723237832872,-306.0,0.000209,2]
[334568139,1723237832881,-267.8162636,0.000209,2]
[334568140,1723237832890,-207.2250634,0.000209,2]
[334568141,1723237832899,-153.0,0.000209,2]
[334568142,1723237832908,-207.2250634,0.000209,2]
[334568143,1723237832917,-14397.97680782,0.00020957,2]
[334568144,1723237832926,-249.65350913,0.0002098,2]
[334568186,1723237838606,-150.01,0.00020803,2]
[334568188,1723237838616,-2993.10206773,0.00020803,2]
[334568190,1723237838627,-2987.41920001,0.0002098,2]
[334568192,1723237838639,-1101.60359902,0.0002098,2]
[334568194,1723237838650,-27294.04071679,0.00021,2]
[334568196,1723237838660,-462.7628652,0.00021,2]
[334568198,1723237838670,-1351.672967,0.00021,2]
[334568200,1723237838680,-297.15758286,0.00021,2]
[334568202,1723237838689,-9426.24693844,0.00021,2]
[334568204,1723237838699,-515.0,0.00021,2]
[334568206,1723237838708,-150.112233,0.00021,2]
[334568208,1723237838718,-3000.0,0.00021,2]
[334568210,1723237838728,-3000.0,0.0002101,2]
[334568212,1723237838738,-3000.0,0.0002102,2]
[334568214,1723237838747,-3000.0,0.0002103,2]
[334568216,1723237838757,-3000.0,0.0002104,2]
[334568218,1723237838767,-3000.0,0.0002105,2]
[334568220,1723237838777,-3000.0,0.0002106,2]
[334568222,1723237838791,-610.85,0.0002106,3]
[334568224,1723237838801,-305.43,0.0002106,3]
[334568226,1723237838810,-152.71,0.0002106,3]
[334568228,1723237838820,-458.16,0.0002106,3]
[334568230,1723237838830,-3000.0,0.0002107,2]
[334568232,1723237838839,-5779.99907369,0.0002107,3]
[334568373,1723237848080,-18687.9391008,0.0002107,3]
[334568374,1723237873308,150.5,0.0002179,120]
[334568375,1723237873838,150.5,0.0002178,120]
[334568632,1723239290315,170.502047,0.00014247,2]
[334568634,1723239335384,404.97965185,0.00014247,2]
[334568635,1723239335425,1621.05384492,0.00014247,2]
[334568636,1723239336869,8457.51461955,0.00014247,2]
[334568637,1723239348526,1412.94429665,0.00014247,2]
[334568638,1723239354913,2507.25549489,0.00014247,2]
[334568639,1723239371387,625.34364194,0.00014247,2]
[334568640,1723239371423,10840.89386525,0.00014247,2]
[334568641,1723239379234,2110.13641058,0.00014247,2]
[334568642,1723239380222,250.04869026,0.00014247,2]
[334568643,1723239393917,2110.13641058,0.00014247,2]
[334568644,1723239422843,3610.65532431,0.00014247,2]
[334568645,1723239439338,404.61321999,0.00014247,2]
[334568646,1723239441020,1412.94429665,0.00014247,2]
[334568647,1723239499940,353.07892075,0.00014247,2]
[334568648,1723239535392,1534.24106619,0.00014247,2]
[334568649,1723239538804,1298.33893655,0.00014247,2]
[334568651,1723239710334,4397.91288502,0.00014098,2]
[334568652,1723239849455,4397.91288502,0.00014793,2]
[334568653,1723239955828,301.01889679,0.00015954,2]
[334568654,1723239983874,274.44831486,0.00015954,2]
[334568656,1723240052564,154.77557542,0.00025,120]
[334568660,1723240153151,-157.85964427,0.00016038,2]
[334568661,1723240153172,-211.767711,0.00016804,2]
[334568662,1723240153193,-210.02278537,0.00017379,2]
[334568726,1723240238001,-7843.05822884,0.00016347,2]
[334568733,1723240238500,-27188.08966273,0.00016347,2]
[334568734,1723240238511,-200.0,0.00018904,2]
[334568735,1723240238523,-223.71254295,0.00019167,2]
[334568736,1723240238532,-184.332408,0.00019178,2]
[334568737,1723240238541,-155.78874176,0.00019451,2]
[334568738,1723240238550,-309.39668881,0.00019451,2]
[334568739,1723240238561,-160.15094004,0.00019451,2]
[334568740,1723240238570,-209.85118264,0.00019477,2]
[334568741,1723240238579,-336.38121722,0.0002,2]
[334568742,1723240238591,-267.8162636,0.0002,2]
[334568743,1723240238600,-153.0,0.0002,2]
[334568744,1723240238609,-381.6638404,0.0002,2]
[334568745,1723240238619,-207.2250634,0.00020078,2]
[334568746,1723240238628,-694.52815247,0.0002028,2]
[334568747,1723240238639,-150.0,0.00020303,2]
[334568748,1723240238650,-507.0,0.00020303,2]
[334568749,1723240238660,-1412.0,0.00020562,2]
[334568750,1723240238670,-151.0,0.00020639,2]
[334568751,1723240238682,-4156.88671392,0.00020774,2]
[334568752,1723240238691,-1724.19333457,0.00020784,2]
[334568753,1723240238701,-267.8162636,0.000208,2]
[334568754,1723240238710,-151.0,0.00020811,2]
[334568755,1723240238719,-13948.6990548,0.00020815,11]
[334568756,1723240238730,-3421.54093531,0.00020815,2]
[334568757,1723240238740,-809.35,0.00020854,3]
[334568758,1723240238749,-224.82,0.00020854,3]
[334568759,1723240238760,-674.46,0.00020854,3]
[334568760,1723240238770,-404.67,0.00020864,3]
[334568761,1723240238780,-46506.9885628,0.00020864,2]
[334568762,1723240238790,-46506.9885628,0.00020874,2]
[334568763,1723240238799,-188.41562552,0.00020883,2]
[334568764,1723240238810,-500.0,0.00020883,2]
[334568765,1723240238820,-500.0,0.00020883,2]
[334568766,1723240238831,-563.04814963,0.00020883,2]
[334568767,1723240238845,-76934.78756247,0.00020884,2]
[334568768,1723240238855,-159.0,0.000209,4]
[334568769,1723240238865,-150.112233,0.000209,5]
[334568770,1723240238875,-150.112233,0.000209,2]
[334568771,1723240238885,-4156.88671389,0.00020974,2]
[334568772,1723240238894,-151.0,0.00020984,2]
[334568773,1723240238903,-3000.0,0.00021,2]
[334568774,1723240238913,-150.112233,0.00021,3]
[334568775,1723240238922,-34231.02647868,0.00021,11]
[334568776,1723240238933,-71504.12175777,0.00021,3]
[334569562,1723240902044,207.238394,0.00014247,2]
[334569563,1723241027844,154.77557542,0.00025,120]
[334569564,1723241131467,154.79103211,0.00025,120]
[334569565,1723241147609,154.79103211,0.00026,120]
[334569651,1723241438460,-276.28745705,0.00016038,2]
[334569652,1723241438470,-200.0,0.00018904,2]
[334569653,1723241438480,-367.6752982,0.00019439,2]
[334569654,1723241438489,-1548.08230065,0.00019451,2]
[334569655,1723241438499,-156.12428899,0.00019451,2]
[334569656,1723241438510,-165.73090826,0.00019451,2]
[334569657,1723241438520,-340.60956939,0.00019477,2]
[334569658,1723241438529,-174.56235819,0.00019477,2]
[334569659,1723241438540,-266.46203032,0.00019547,2]
[334569660,1723241438553,-250.0,0.00019677,2]
[334569661,1723241438562,-1412.0,0.00020261,2]
[334569662,1723241438572,-150.0,0.00020562,2]
[334569663,1723241438581,-300.0,0.00020658,2]
[334569664,1723241438590,-3557.51418684,0.0002072,2]
[334569665,1723241438600,-150.0,0.00020924,2]
[334569666,1723241438610,-507.0,0.00020924,2]
[334569667,1723241438620,-1508.66916774,0.0002094,2]
[334569668,1723241438630,-2753.78750212,0.00021,2]
[334569705,1723241443518,-11.83058764,0.00021,2]
[334570040,1723241447611,-150.01,0.00020999,2]
[334570042,1723241447621,-2518.95574565,0.00021,2]
[334570045,1723241447632,-1737.76934967,0.00021,2]
[334570047,1723241447643,-1388.0488725,0.00021,2]
[334571027,1723241878296,174.655578,0.00014247,2]
[334571028,1723241933944,1022.58511355,0.00014247,2]
[334571042,1723242462678,166.456679,0.00014247,2]
[334571075,1723242638370,-200.0,0.00018904,2]
[334571077,1723242638380,-1776.2100166,0.00019155,2]
[334571078,1723242638390,-193.713204,0.00019644,2]
[334571079,1723242638399,-300.0,0.00019672,2]
[334571080,1723242638409,-2614.43495682,0.00019673,2]
[334571092,1723242643232,-6064.16856578,0.00019673,2]
[334571093,1723242643244,-5112.68102993,0.00020706,2]
[334571094,1723242643256,-1412.0,0.00020936,2]
[334571095,1723242643267,-150.46,0.00020936,2]
[334571096,1723242643282,-507.0,0.00020936,2]
[334571097,1723242643296,-1117.25933642,0.00020999,2]
[334571098,1723242643340,-1875.84273131,0.00020999,2]
[334571099,1723242643352,-150.01,0.00020999,2]
[334571100,1723242643364,-4389.48903843,0.00021,11]
[334571111,1723242646461,-691.02362734,0.000209,2]
[334571112,1723242646579,-629.06189445,0.000209,2]
[334571113,1723242646588,-1624.14525385,0.00021,11]
[334571116,1723242947737,174.655578,0.00014247,2]
[334571125,1723243032085,5000.0,0.00027,120]
[334571127,1723243051420,1326.05528531,0.00015954,2]
[334571209,1723243832307,-254.82137191,0.00016532,2]
[334571211,1723243832317,-164.0717589,0.00018904,2]
[334571226,1723243838620,-35.9282411,0.00018904,2]
[334571227,1723243838631,-300.03788272,0.00019177,2]
[334571228,1723243838641,-166.162992,0.00019717,2]
[334571229,1723243838650,-250.0,0.00019762,2]
[334571230,1723243838659,-507.28634395,0.0002,2]
[334571231,1723243838721,-202.35896449,0.0002,2]
[334571232,1723243838734,-264.68735542,0.0002,2]
[334571233,1723243838743,-300.0,0.00020947,2]
[334571234,1723243838753,-300.0,0.00020947,2]
[334571235,1723243838763,-150.0,0.00020948,2]
[334571236,1723243838772,-507.0,0.00020948,2]
[334571237,1723243838782,-1412.0,0.00020948,2]
[334571239,1723243838793,-150.337,0.00020948,2]
[334571241,1723243838805,-150.233,0.00020948,2]
[334571243,1723243838814,-179.981,0.00020948,2]
[334571244,1723243838823,-212.38745378,0.00020948,2]
[334571282,1723243843621,-172.16580948,0.00019167,2]
[334571283,1723243843631,-0.28354622,0.00020948,2]
[334571284,1723243843644,-150.01,0.00020999,2]
[334571285,1723243843657,-924.26081679,0.00020999,2]
[334571312,1723243846632,-646.8592702,0.00020999,2]
[334571315,1723243923029,174.655578,0.00014247,2]
[334571322,1723244371171,163.48284,0.00014247,2]
[334571323,1723244390471,1167.468,0.00016,2]
[334571327,1723244820748,174.655578,0.00014247,2]
[334571328,1723244877271,20000.003,0.00027,120]
[334571482,1723245046741,-200.0,0.00018904,2]
[334571483,1723245046751,-138.138418,0.00019963,2]
[334571516,1723245960096,271.9323852,0.00014247,2]
[334571689,1723246242904,-200.0,0.00018904,2]
[334571691,1723246242913,-151.56653755,0.0002,2]
[334571693,1723246242922,-2217.80967318,0.00020721,11]
[334571775,1723246245936,-271.9323852,0.00020721,11]
[334571783,1723246887859,-3417.0,0.0001984,11]
[334571784,1723246909396,-7988.51087947,0.0001924,11]
[334571785,1723246932228,-22567.0,0.00020774,11]
[334571786,1723246949398,-1644.0,0.00020774,11]
[334571788,1723246958147,3994.25543973,0.0001971,11]
[334571790,1723247011645,162.704072,0.00014247,2]
[334571793,1723247118492,154.77557542,0.00027,120]
[334571828,1723247431821,-200.0,0.00018904,2]
[334571829,1723247431831,-100.0,0.00018948,2]
[334571896,1723247440089,-5662.333821,0.00018948,2]
[334571897,1723247440105,-150.0,0.00019191,2]
[334571898,1723247440114,-300.0,0.0001921,2]
[334571899,1723247440124,-166.398436,0.00019245,2]
[334571900,1723247440133,-4214.0632523,0.0001942,2]
[334571901,1723247440143,-295.52972968,0.00019549,2]
[334571902,1723247440152,-4214.0632523,0.0001961,2]
[334571903,1723247440162,-613.794906,0.00019762,2]
[334571904,1723247440171,-613.794906,0.00019762,2]
[334571905,1723247440181,-701.617599,0.00019762,2]
[334571906,1723247440190,-701.617599,0.00019762,2]
[334571907,1723247440199,-619.072151,0.00019762,2]
[334571908,1723247440209,-619.072151,0.00019762,2]
[334571909,1723247440219,-1083.97259,0.00019762,2]
[334571910,1723247440229,-1083.97259,0.00019762,2]
[334571911,1723247440239,-1235.627972,0.00019762,2]
[334571912,1723247440248,-1235.627972,0.00019762,2]
[334571913,1723247440258,-151.0,0.00019762,2]
[334571914,1723247440268,-151.0,0.00019762,2]
[334571915,1723247440278,-151.0,0.00019762,2]
[334571916,1723247440288,-151.0,0.00019762,2]
[334571917,1723247440298,-151.0,0.00019762,2]
[334571918,1723247440307,-151.0,0.00019762,2]
[334571919,1723247440316,-678.50604,0.00019762,2]
[334571920,1723247440326,-678.50604,0.00019762,2]
[334571921,1723247440336,-678.50604,0.00019762,2]
[334571922,1723247440346,-678.50604,0.00019762,2]
[334571923,1723247440355,-678.50604,0.00019762,2]
[334571924,1723247440364,-678.50604,0.00019762,2]
[334571925,1723247440373,-971.886924,0.00019762,2]
[334571926,1723247440383,-971.886924,0.00019762,2]
[334571927,1723247440392,-971.886924,0.00019762,2]
[334571928,1723247440401,-971.886924,0.00019762,2]
[334571929,1723247440411,-971.886924,0.00019762,2]
[334571930,1723247440421,-971.886924,0.00019762,2]
[334571931,1723247440430,-151.0,0.00019762,2]
[334571932,1723247440440,-151.0,0.00019762,2]
[334571933,1723247440449,-151.0,0.00019762,2]
[334571934,1723247440460,-341.203108,0.00019762,2]
[334571935,1723247440469,-341.203108,0.00019762,2]
[334571936,1723247440479,-341.203108,0.00019762,2]
[334571937,1723247440488,-341.203108,0.00019762,2]
[334571938,1723247440497,-341.203108,0.00019762,2]
[334571939,1723247440507,-341.203108,0.00019762,2]
[334571940,1723247440516,-151.0,0.00019764,2]
[334571941,1723247440525,-179.712722,0.00019764,2]
[334571942,1723247440535,-179.712722,0.00019764,2]
[334571943,1723247440546,-151.0,0.00019764,2]
[334571944,1723247440556,-151.0,0.00019764,2]
[334571945,1723247440565,-151.0,0.00019764,2]
[334571946,1723247440575,-678.50604,0.00019764,2]
[334571947,1723247440585,-678.50604,0.00019764,2]
[334571948,1723247440602,-971.886924,0.00019764,2]
[334571949,1723247440612,-971.886924,0.00019764,2]
[334571950,1723247440622,-341.203108,0.00019764,2]
[334571951,1723247440631,-341.203108,0.00019764,2]
[334571952,1723247440641,-1997.12771987,0.00019813,11]
[334571953,1723247440651,-4214.0632525,0.00019813,2]
[334571954,1723247440660,-1580.76004743,0.00019817,2]
[334571955,1723247440671,-151.0,0.00019917,2]
[334571956,1723247440681,-179.290805,0.00019917,2]
[334571957,1723247440690,-678.50604,0.00019917,2]
[334571958,1723247440700,-678.50604,0.00019917,2]
[334571959,1723247440710,-971.886924,0.00019917,2]
[334571960,1723247440720,-971.886924,0.00019917,2]
[334571961,1723247440729,-341.203108,0.00019917,2]
[334571962,1723247440739,-341.203108,0.00019917,2]
[334571963,1723247440748,-4246.67895332,0.00020512,2]
[334571985,1723247446197,-352.63789028,0.00020512,2]
[334571994,1723248124432,162.704072,0.00014247,2]
[334571997,1723248212364,157.33891375,0.00014247,2]
[334571998,1723248217994,189.93381828,0.00014247,2]
[334572003,1723248561155,-216.466456,0.00018467,2]
[334572004,1723248561179,-363.18465771,0.00018899,7]
[334572070,1723248638320,-1279.97376287,0.00017269,7]
[334572072,1723248638333,-200.0,0.00018904,2]
[334572073,1723248638343,-694.52815247,0.00018945,2]
[334572074,1723248638355,-165.64084866,0.00018989,2]
[334572075,1723248638366,-170.589378,0.00019178,2]
[334572076,1723248638375,-1383.16504151,0.00019661,2]
[334572077,1723248638385,-4683.84297585,0.00019662,2]
[334572078,1723248638396,-349.90524,0.000197,2]
[334572079,1723248638405,-1037.91,0.00019742,3]
[334572080,1723248638415,-518.95,0.00019742,3]
[334572081,1723248638424,-259.48,0.00019742,3]
[334572082,1723248638433,-778.46,0.00019742,3]
[334572083,1723248638444,-998.56385993,0.00019752,11]
[334572084,1723248638453,-93850.8425103,0.00019752,2]
[334572085,1723248638462,-500.0,0.00019761,2]
[334572086,1723248638472,-153.03539112,0.00019761,2]
[334572087,1723248638481,-500.0,0.00019761,2]
[334572088,1723248638493,-500.0,0.00019761,2]
[334572089,1723248638505,-500.0,0.00019761,2]
[334572090,1723248638515,-237.91780443,0.00019761,2]
[334572091,1723248638525,-500.0,0.00019761,2]
[334572092,1723248638535,-500.0,0.00019761,2]
[334572093,1723248638545,-486.36124162,0.00019761,2]
[334572094,1723248638555,-500.0,0.00019761,2]
[334572095,1723248638565,-500.0,0.00019761,2]
[334572096,1723248638575,-185.11272798,0.00019761,2]
[334572097,1723248638584,-151.0,0.00019762,2]
[334572098,1723248638592,-151.0,0.00019762,2]
[334572099,1723248638602,-151.0,0.00019762,2]
[334572100,1723248638612,-153.67541,0.00019762,2]
[334572101,1723248638621,-151.0,0.00019762,2]
[334572102,1723248638631,-151.0,0.00019762,2]
[334572103,1723248638640,-151.0,0.00019762,2]
[334572104,1723248638649,-151.0,0.00019762,2]
[334572105,1723248638659,-292.238752,0.00019762,2]
[334572106,1723248638669,-151.0,0.00019762,2]